fUSD/lending_fUSD_20250206
["ID","MTS","AMOUNT","RATE_DAILY","PERIOD"]
[352001711,1738875035652,-682.62,0.00017117,2]
[352001712,1738875035662,-500.0,0.00017117,2]
[352001713,1738875035671,-500.0,0.00017117,2]
[352001714,1738875035681,-550.73,0.00017117,2]
[352001715,1738875035691,-500.0,0.00017117,2]
[352001716,1738875035701,-233.93012416,0.00017117,2]
[352001717,1738875035711,-500.0,0.00017117,2]
[352001718,1738875035720,-500.0,0.00017117,2]
[352001719,1738875035730,-184.86190612,0.00017117,2]
[352001720,1738875035741,-500.0,0.00017117,2]
[352001721,1738875035750,-500.0,0.00017117,2]
[352001722,1738875035760,-500.0,0.00017117,2]
[352001723,1738875035770,-574.32,0.00017117,2]
[352001724,1738875035779,-958.47,0.00017117,2]
[352001725,1738875035791,-500.0,0.00017117,2]
[352001726,1738875035814,-593.32824662,0.00017117,2]
[352001727,1738875035838,-500.0,0.00017117,2]
[352001728,1738875035860,-651.6,0.00017117,2]
[352001729,1738875035881,-500.0,0.00017117,2]
[352001730,1738875035907,-500.0,0.00017117,2]
[352001731,1738875035931,-500.0,0.00017117,2]
[352001732,1738875035953,-500.0,0.00017117,2]
[352001733,1738875035976,-500.0,0.00017117,2]
[352001734,1738875035998,-500.0,0.00017117,2]
[352001735,1738875036019,-500.0,0.00017117,2]
[352001736,1738875036041,-528.73,0.00017117,2]
[352001737,1738875036061,-500.0,0.00017117,2]
[352001738,1738875036071,-500.0,0.00017117,2]
[352001739,1738875036080,-500.0,0.00017117,2]
[352001740,1738875036090,-1119.57,0.00017117,2]
[352001741,1738875036099,-500.0,0.00017117,2]
[352001742,1738875036108,-500.0,0.00017117,2]
[352001743,1738875036118,-500.0,0.00017117,2]
[352001744,1738875036128,-500.0,0.00017117,2]
[352001745,1738875036137,-500.0,0.00017117,2]
[352001746,1738875036147,-500.0,0.00017117,2]
[352001747,1738875036157,-500.0,0.00017117,2]
[352001748,1738875036166,-500.0,0.00017117,2]
[352001749,1738875036175,-500.0,0.00017117,2]
[352001750,1738875036184,-1133.31,0.00017117,2]
[352001751,1738875036193,-623.97,0.00017117,2]
[352001752,1738875036203,-500.0,0.00017117,2]
[352001753,1738875036212,-500.0,0.00017117,2]
[352001754,1738875036222,-500.0,0.00017117,2]
[352001755,1738875036231,-500.0,0.00017117,2]
[352001756,1738875036241,-500.0,0.00017117,2]
[352001757,1738875036250,-500.0,0.00017117,2]
[352001758,1738875036260,-512.02,0.00017117,2]
[352001759,1738875036269,-500.0,0.00017117,2]
[352001760,1738875036279,-397.51358309,0.00017117,2]
[352001761,1738875036288,-500.0,0.00017117,2]
[352001762,1738875036298,-500.0,0.00017117,2]
[352001763,1738875036308,-500.0,0.00017117,2]
[352001764,1738875036320,-500.0,0.00017117,2]
[352001765,1738875036330,-500.0,0.00017117,2]
[352001766,1738875036339,-500.0,0.00017117,2]
[352001767,1738875036350,-550.34,0.00017117,2]
[352001768,1738875036361,-500.0,0.00017117,2]
[352001769,1738875036370,-500.0,0.00017117,2]
[352001770,1738875036379,-643.4,0.00017117,2]
[352001771,1738875036388,-500.0,0.00017117,2]
[352001772,1738875036400,-500.0,0.00017117,2]
[352001773,1738875036410,-501.81,0.00017117,2]
[352001774,1738875036419,-144.29334871,0.00017118,2]
[352001775,1738875036441,-275.83066418,0.00017117,2]
[352001776,1738875036456,-224.16933582,0.00017117,2]
[352001777,1738875036465,-188.66631699,0.00017118,2]
[352001778,1738875036475,-500.0,0.00017118,2]
[352001779,1738875036484,-500.0,0.00017118,2]
[352001780,1738875036495,-500.0,0.00017118,2]
[352001781,1738875036504,-500.0,0.00017118,2]
[352001782,1738875036514,-500.0,0.00017118,2]
[352001783,1738875036523,-500.0,0.00017118,2]
[352001784,1738875036532,-500.0,0.00017118,2]
[352001785,1738875036542,-500.0,0.00017118,2]
[352001786,1738875036552,-500.0,0.00017118,2]
[352001787,1738875036561,-500.0,0.00017118,2]
[352001788,1738875036570,-500.0,0.00017118,2]
[352001789,1738875036580,-500.0,0.00017118,2]
[352001790,1738875036589,-596.44,0.00017118,2]
[352001791,1738875036599,-500.0,0.00017118,2]
[352001792,1738875036608,-500.0,0.00017118,2]
[352001793,1738875036617,-500.0,0.00017118,2]
[352001794,1738875036626,-500.0,0.00017118,2]
[352001795,1738875036636,-500.0,0.00017118,2]
[352001796,1738875036647,-500.0,0.00017118,2]
[352001797,1738875036656,-500.0,0.00017118,2]
[352001798,1738875036666,-500.0,0.00017118,2]
[352001799,1738875036675,-500.0,0.00017118,2]
[352001800,1738875036685,-500.0,0.00017118,2]
[352001801,1738875036694,-500.0,0.00017118,2]
[352001802,1738875036703,-500.0,0.00017118,2]
[352001803,1738875036713,-678.99,0.00017118,2]
[352001804,1738875036721,-500.0,0.00017118,2]
[352001805,1738875036731,-619.26304612,0.00017118,2]
[352001806,1738875036740,-589.83,0.00017118,2]
[352001807,1738875036750,-500.0,0.00017118,2]
[352001808,1738875036759,-500.0,0.00017118,2]
[352001809,1738875036769,-500.0,0.00017118,2]
[352001810,1738875036778,-509.97137665,0.00017118,2]
[352001811,1738875036788,-500.0,0.00017118,2]
[352001812,1738875036798,-500.0,0.00017118,2]
[352001813,1738875036807,-501.46877145,0.00017118,2]
[352001814,1738875036817,-500.0,0.00017118,2]
[352001815,1738875036826,-500.52825834,0.00017118,2]
[352001816,1738875036835,-500.87220714,0.00017118,2]
[352001817,1738875036845,-500.0,0.00017118,2]
[352001818,1738875036854,-500.0,0.00017118,2]
[352001819,1738875036864,-500.0,0.00017118,2]
[352001820,1738875036873,-500.0,0.00017118,2]
[352001821,1738875036883,-500.0,0.00017118,2]
[352001822,1738875036893,-500.56396794,0.00017118,2]
[352001823,1738875036902,-501.25284158,0.00017118,2]
[352001824,1738875036912,-500.0,0.00017118,2]
[352001825,1738875036921,-500.0,0.00017118,2]
[352001826,1738875036930,-500.0,0.00017118,2]
[352001827,1738875036939,-500.0,0.00017118,2]
[352001828,1738875036949,-437.10188684,0.00017118,2]
[352001829,1738875036959,-500.0,0.00017118,2]
[352001830,1738875036969,-500.0,0.00017118,2]
[352001831,1738875036979,-500.0,0.00017118,2]
[352001832,1738875036988,-500.0,0.00017118,2]
[352001833,1738875036998,-500.0,0.00017118,2]
[352001834,1738875037007,-500.0,0.00017118,2]
[352001835,1738875037017,-500.0,0.00017118,2]
[352001836,1738875037026,-500.0,0.00017118,2]
[352001837,1738875037036,-500.0,0.00017118,2]
[352001838,1738875037045,-500.0,0.00017118,2]
[352001839,1738875037054,-500.0,0.00017118,2]
[352001840,1738875037063,-500.0,0.00017118,2]
[352001841,1738875037072,-500.0,0.00017118,2]
[352001842,1738875037081,-500.0,0.00017118,2]
[352001843,1738875037090,-500.0,0.00017118,2]
[352001844,1738875037100,-500.0,0.00017118,2]
[352001845,1738875037109,-500.0,0.00017118,2]
[352001846,1738875037118,-500.0,0.00017118,2]
[352001847,1738875037127,-500.0,0.00017118,2]
[352001848,1738875037135,-500.0,0.00017118,2]
[352001849,1738875037145,-500.0,0.00017118,2]
[352001850,1738875037154,-500.0,0.00017118,2]
[352001851,1738875037163,-500.0,0.00017118,2]
[352001852,1738875037173,-500.0,0.00017118,2]
[352001853,1738875037182,-500.0,0.00017118,2]
[352001854,1738875037191,-500.0,0.00017118,2]
[352001855,1738875037201,-500.0,0.00017118,2]
[352001856,1738875037210,-500.0,0.00017118,2]
[352001857,1738875037220,-500.0,0.00017118,2]
[352001858,1738875037229,-500.0,0.00017118,2]
[352001859,1738875037240,-402.91,0.00017118,2]
[352001860,1738875037249,-500.0,0.00017118,2]
[352001861,1738875037259,-500.0,0.00017118,2]
[352001862,1738875037268,-500.0,0.00017118,2]
[352001863,1738875037277,-500.0,0.00017118,2]
[352001864,1738875037287,-500.0,0.00017118,2]
[352001865,1738875037296,-406.40743534,0.00017118,2]
[352001866,1738875037305,-500.0,0.00017118,2]
[352001867,1738875037317,-500.0,0.00017118,2]
[352001868,1738875037327,-500.0,0.00017118,2]
[352001869,1738875037336,-500.0,0.00017118,2]
[352001870,1738875037345,-500.0,0.00017118,2]
[352001871,1738875037356,-500.0,0.00017118,2]
[352001872,1738875037365,-500.0,0.00017118,2]
[352001873,1738875037375,-500.0,0.00017118,2]
[352001874,1738875037384,-570.25,0.00017118,2]
[352001876,1738875037398,-529.32819938,0.00017118,2]
[352001878,1738875037408,-523.33,0.00017118,2]
[352001880,1738875037417,-322.01781372,0.00017118,2]
[352001881,1738875037427,-519.79444173,0.00017118,2]
[352001882,1738875037436,-500.0,0.00017118,2]
[352001883,1738875037445,-500.0,0.00017118,2]
[352001884,1738875037454,-546.17,0.00017118,2]
[352001885,1738875037464,-500.0,0.00017118,2]
[352001886,1738875037473,-500.0,0.00017118,2]
[352001887,1738875037482,-500.0,0.00017118,2]
[352001888,1738875037491,-500.0,0.00017118,2]
[352001889,1738875037501,-500.0,0.00017118,2]
[352001890,1738875037510,-500.0,0.00017118,2]
[352001891,1738875037519,-500.0,0.00017118,2]
[352001892,1738875037529,-500.0,0.00017118,2]
[352001893,1738875037538,-500.0,0.00017118,2]
[352001894,1738875037547,-500.0,0.00017118,2]
[352001895,1738875037556,-500.0,0.00017118,2]
[352001896,1738875037566,-500.0,0.00017118,2]
[352001897,1738875037575,-959.3,0.00017118,2]
[352001898,1738875037585,-500.0,0.00017118,2]
[352001899,1738875037595,-408.73422175,0.00017118,2]
[352001900,1738875037605,-500.0,0.00017118,2]
[352001901,1738875037614,-500.0,0.00017118,2]
[352001902,1738875037624,-500.0,0.00017118,2]
[352001903,1738875037633,-500.0,0.00017118,2]
[352001904,1738875037643,-500.0,0.00017118,2]
[352001905,1738875037654,-500.0,0.00017118,2]
[352001906,1738875037664,-500.0,0.00017118,2]
[352001907,1738875037673,-500.0,0.00017118,2]
[352001908,1738875037683,-500.0,0.00017118,2]
[352001909,1738875037692,-602.38472574,0.00017118,2]
[352001910,1738875037702,-500.0,0.00017118,2]
[352001911,1738875037767,-500.0,0.00017118,2]
[352001912,1738875037789,-510.53057765,0.00017118,2]
[352001913,1738875037816,-500.0,0.00017118,2]
[352001915,1738875037843,-500.0,0.00017118,2]
[352001917,1738875037868,-500.0,0.00017118,2]
[352001919,1738875037890,-500.0,0.00017118,2]
[352001921,1738875037927,-500.0,0.00017118,2]
[352001923,1738875037966,-500.0,0.00017118,2]
[352001925,1738875037989,-500.0,0.00017118,2]
[352001927,1738875038005,-737.58,0.00017118,2]
[352001929,1738875038015,-938.11,0.00017118,2]
[352001931,1738875038025,-571.23,0.00017118,2]
[352001933,1738875038035,-569.44,0.00017118,2]
[352001935,1738875038044,-623.88,0.00017118,2]
[352001937,1738875038054,-621.17,0.00017118,2]
[352001939,1738875038063,-500.0,0.00017118,2]
[352001941,1738875038072,-500.0,0.00017118,2]
[352001943,1738875038081,-500.0,0.00017118,2]
[352001945,1738875038090,-604.34,0.00017118,2]
[352001947,1738875038099,-500.0,0.00017118,2]
[352001949,1738875038109,-500.0,0.00017118,2]
[352001951,1738875038118,-500.0,0.00017118,2]
[352001953,1738875038127,-500.41268267,0.00017118,2]
[352001955,1738875038136,-500.0,0.00017118,2]
[352001957,1738875038145,-1731.96,0.00017118,2]
[352001959,1738875038155,-500.0,0.00017118,2]
[352001960,1738875038165,-500.0,0.00017118,2]
[352001962,1738875038174,-500.0,0.00017118,2]
[352001964,1738875038183,-500.0,0.00017118,2]
[352001966,1738875038193,-270.37142533,0.00017118,2]
[352001968,1738875038203,-894.92,0.00017118,2]
[352001970,1738875038212,-955.96,0.00017118,2]
[352001972,1738875038221,-500.0,0.00017118,2]
[352001974,1738875038230,-644.42,0.00017118,2]
[352001976,1738875038239,-518.99768423,0.00017118,2]
[352001978,1738875038248,-524.25190407,0.00017118,2]
[352001980,1738875038257,-500.0,0.00017118,2]
[352001982,1738875038267,-1017.62,0.00017118,2]
[352001984,1738875038276,-500.0,0.00017118,2]
[352001986,1738875038285,-500.0,0.00017118,2]
[352001988,1738875038295,-565.55183482,0.00017118,2]
[352001990,1738875038304,-500.0,0.00017118,2]
[352001992,1738875038316,-528.14,0.00017118,2]
[352001994,1738875038326,-500.0,0.00017118,2]
[352001996,1738875038336,-516.34654406,0.00017118,2]
[352001998,1738875038345,-897.79,0.00017118,2]
[352002000,1738875038355,-500.0,0.00017118,2]
[352002002,1738875038364,-658.13,0.00017118,2]
[352002004,1738875038373,-1351.27,0.00017118,2]
[352002006,1738875038382,-500.0,0.00017118,2]
[352002008,1738875038394,-500.0,0.00017118,2]
[352002010,1738875038404,-500.0,0.00017118,2]
[352002012,1738875038413,-500.0,0.00017118,2]
[352002014,1738875038422,-500.0,0.00017118,2]
[352002016,1738875038431,-556.92,0.00017118,2]
[352002018,1738875038440,-831.74,0.00017118,2]
[352002020,1738875038449,-500.0,0.00017118,2]
[352002022,1738875038458,-676.19,0.00017118,2]
[352002024,1738875038467,-500.0,0.00017118,2]
[352002026,1738875038476,-635.35,0.00017118,2]
[352002028,1738875038485,-520.84,0.00017118,2]
[352002030,1738875038495,-500.0,0.00017118,2]
[352002031,1738875038504,-500.0,0.00017118,2]
[352002033,1738875038513,-688.58,0.00017118,2]
[352002035,1738875038522,-531.53,0.00017118,2]
[352002037,1738875038531,-500.0,0.00017118,2]
[352002039,1738875038540,-500.0,0.00017118,2]
[352002041,1738875038550,-500.0,0.00017118,2]
[352002043,1738875038559,-503.48323494,0.00017118,2]
[352002045,1738875038568,-500.0,0.00017118,2]
[352002047,1738875038577,-500.0,0.00017118,2]
[352002049,1738875038587,-500.0,0.00017118,2]
[352002051,1738875038597,-500.0,0.00017118,2]
[352002053,1738875038605,-500.0,0.00017118,2]
[352002055,1738875038615,-500.0,0.00017118,2]
[352002057,1738875038624,-500.0,0.00017118,2]
[352002059,1738875038634,-500.0,0.00017118,2]
[352002061,1738875038643,-800.55,0.00017118,2]
[352002063,1738875038655,-500.0,0.00017118,2]
[352002065,1738875038664,-512.91,0.00017118,2]
[352002067,1738875038674,-500.0,0.00017118,2]
[352002069,1738875038683,-500.0,0.00017118,2]
[352002071,1738875038692,-500.0,0.00017118,2]
[352002073,1738875038701,-860.54,0.00017118,2]
[352002075,1738875038710,-500.0,0.00017118,2]
[352002077,1738875038719,-500.0,0.00017118,2]
[352002079,1738875038729,-500.0,0.00017118,2]
[352002081,1738875038738,-567.0,0.00017118,2]
[352002083,1738875038747,-617.58,0.00017118,2]
[352002085,1738875038757,-887.38,0.00017118,2]
[352002086,1738875038767,-500.0,0.00017118,2]
[352002087,1738875038776,-701.79,0.00017118,2]
[352002089,1738875038786,-500.0,0.00017118,2]
[352002091,1738875038795,-500.0,0.00017118,2]
[352002093,1738875038804,-500.0,0.00017118,2]
[352002095,1738875038813,-500.0,0.00017119,2]
[352002097,1738875038822,-2000.0,0.00017119,2]
[352002099,1738875038831,-500.0,0.00017119,2]
[352002101,1738875038840,-200.0,0.00017119,2]
[352002103,1738875038849,-500.0,0.00017119,2]
[352002105,1738875038859,-518.19953804,0.0001712,2]
[352002107,1738875038867,-500.0,0.0001712,2]
[352002109,1738875038877,-428.25486309,0.0001712,2]
[352002111,1738875038886,-500.0,0.0001712,2]
[352002113,1738875038895,-328.35288043,0.0001712,2]
[352002115,1738875038906,-500.0,0.0001712,2]
[352002116,1738875038915,-500.0,0.0001712,2]
[352002118,1738875038925,-500.0,0.0001712,2]
[352002120,1738875038934,-624.61465497,0.0001712,2]
[352002123,1738875038944,-500.0,0.0001712,2]
[352002125,1738875038954,-500.0,0.0001712,2]
[352002127,1738875038964,-500.0,0.0001712,2]
[352002129,1738875038974,-500.0,0.0001712,2]
[352002131,1738875038984,-500.0,0.0001712,2]
[352002133,1738875038993,-500.0,0.0001712,2]
[352002134,1738875039003,-500.0,0.0001712,2]
[352002137,1738875039012,-500.0,0.0001712,2]
[352002138,1738875039021,-500.0,0.0001712,2]
[352002140,1738875039030,-500.0,0.0001712,2]
[352002142,1738875039039,-500.0,0.0001712,2]
[352002143,1738875039048,-500.0,0.0001712,2]
[352002144,1738875039057,-500.0,0.0001712,2]
[352002145,1738875039066,-512.60755416,0.0001712,2]
[352002146,1738875039075,-500.0,0.0001712,2]
[352002147,1738875039084,-500.0,0.0001712,2]
[352002148,1738875039092,-500.0,0.0001712,2]
[352002149,1738875039101,-500.0,0.0001712,2]
[352002150,1738875039110,-319.78,0.0001712,2]
[352002151,1738875039119,-500.0,0.0001712,2]
[352002152,1738875039128,-608.09577414,0.0001712,2]
[352002153,1738875039137,-238.0,0.00017123,2]
[352002154,1738875039146,-150.0,0.00017124,2]
[352002155,1738875039156,-150.0,0.00017128,2]
[352002156,1738875039165,-150.0,0.00017129,2]
[352002157,1738875039174,-150.0,0.0001713,2]
[352002158,1738875039183,-150.0,0.00017133,2]
[352002159,1738875039192,-150.0,0.00017135,2]
[352002160,1738875039200,-1000.0,0.00017136,2]
[352002161,1738875039208,-153.75922793,0.00017137,2]
[352002162,1738875039217,-162.11028443,0.00017137,2]
[352002163,1738875039226,-150.0,0.00017137,2]
[352002165,1738875039235,-150.0,0.00017142,2]
[352002167,1738875039244,-150.0,0.00017143,2]
[352002169,1738875039254,-150.0,0.00017146,2]
[352002171,1738875039264,-150.0,0.00017148,2]
[352002173,1738875039273,-2810.69343485,0.00017153,2]
[352002174,1738875039282,-476.77177324,0.00017154,2]
[352002176,1738875039291,-150.0,0.00017156,2]
[352002179,1738875039301,-639.31395727,0.00017158,2]
[352002180,1738875039311,-150.0,0.00017158,2]
[352002182,1738875039322,-150.0,0.00017164,2]
[352002184,1738875039331,-150.0,0.00017172,2]
[352002186,1738875039340,-500.0,0.00017173,2]
[352002188,1738875039349,-150.0,0.00017173,2]
[352002190,1738875039359,-51.23823221,0.00017173,2]
[352002214,1738875039542,-98.76176779,0.00017173,2]
[352002216,1738875039552,-150.0,0.00017177,2]
[352002218,1738875039561,-150.0,0.00017179,2]
[352002220,1738875039571,-241.97092203,0.00017182,2]
[352002222,1738875039582,-716.79233571,0.00017182,2]
[352002224,1738875039592,-150.0,0.00017183,2]
[352002226,1738875039601,-150.0,0.00017188,2]
[352002228,1738875039611,-150.0,0.00017188,2]
[352002230,1738875039621,-150.0,0.00017189,2]
[352002232,1738875039630,-53.55766425,0.00017192,2]
[352002235,1738875039648,-96.44233575,0.00017192,2]
[352002237,1738875039658,-150.0,0.00017194,2]
[352002239,1738875039668,-150.0,0.00017196,2]
[352002241,1738875039677,-150.0,0.00017199,2]
[352002243,1738875039687,-150.0,0.000172,2]
[352002245,1738875039696,-150.0,0.00017204,2]
[352002247,1738875039706,-150.0,0.00017207,2]
[352002249,1738875039715,-150.0,0.00017208,2]
[352002251,1738875039725,-150.0,0.00017208,2]
[352002253,1738875039734,-150.0,0.00017212,2]
[352002255,1738875039743,-150.0,0.00017219,2]
[352002257,1738875039753,-150.0,0.00017219,2]
[352002259,1738875039762,-134.35496769,0.00017222,2]
[352002263,1738875039787,-15.64503231,0.00017222,2]
[352002264,1738875039796,-4096.02388007,0.00017222,2]
[352002266,1738875039806,-150.0,0.00017225,2]
[352002269,1738875039816,-150.0,0.00017228,2]
[352002271,1738875039825,-150.0,0.00017233,2]
[352002272,1738875039835,-150.0,0.00017234,2]
[352002275,1738875039844,-438.62,0.00017236,2]
[352002277,1738875039854,-150.0,0.00017236,2]
[352002278,1738875039863,-300.0,0.00017236,2]
[352002281,1738875039874,-438.62,0.00017236,2]
[352002283,1738875039884,-150.0,0.00017236,2]
[352002285,1738875039894,-438.62,0.00017236,2]
[352002287,1738875039904,-150.0,0.00017236,2]
[352002289,1738875039914,-150.0,0.00017236,2]
[352002291,1738875039923,-438.62,0.00017236,2]
[352002293,1738875039932,-438.62,0.00017236,2]
[352002295,1738875039942,-150.0,0.00017236,2]
[352002297,1738875039951,-438.62,0.00017236,2]
[352002299,1738875039961,-150.0,0.00017236,2]
[352002301,1738875039970,-150.0,0.00017236,2]
[352002303,1738875039980,-2810.69343482,0.00017236,2]
[352002305,1738875039989,-150.0,0.00017241,2]
[352002307,1738875039999,-150.0,0.00017242,2]
[352002309,1738875040009,-150.0,0.00017242,2]
[352002311,1738875040019,-150.0,0.00017243,2]
[352002313,1738875040029,-150.0,0.00017243,2]
[352002315,1738875040040,-150.0,0.00017245,2]
[352002317,1738875040049,-150.0,0.00017246,2]
[352002319,1738875040059,-150.0,0.00017248,2]
[352002321,1738875040069,-1396.4738812,0.00017248,2]
[352002323,1738875040079,-3929.0208447,0.00017248,2]
[352002325,1738875040087,-150.0,0.00017248,2]
[352002327,1738875040097,-1420.4229269,0.00017248,2]
[352002394,1738875040735,-150.0,0.00017014,2]
[352002396,1738875040745,-150.0,0.00017015,2]
[352002398,1738875040755,-150.0,0.00017037,2]
[352002400,1738875040765,-150.0,0.00017037,2]
[352002402,1738875040774,-150.0,0.00017071,2]
[352002404,1738875040784,-150.0,0.00017099,2]
[352002406,1738875040794,-150.0,0.000171,2]
[352002408,1738875040803,-150.0,0.00017104,2]
[352002410,1738875040813,-150.0,0.00017112,2]
[352002412,1738875040823,-500.0,0.00017117,2]
[352002415,1738875040833,-122.34,0.00017117,2]
[352002417,1738875040844,-27.66,0.00017117,2]
[352002419,1738875040854,-547.36,0.00017118,2]
[352002421,1738875040863,-500.0,0.00017118,2]
[352002423,1738875040873,-150.0,0.00017161,2]
[352002425,1738875040882,-150.0,0.0001719,2]
[352002427,1738875040892,-150.0,0.00017195,2]
[352002429,1738875040904,-150.0,0.00017231,2]
[352002431,1738875040914,-150.0,0.00017237,2]
[352002433,1738875040923,-2212.55747779,0.00017248,2]
[352002435,1738875040938,-308.91828684,0.00017248,2]
[352002437,1738875040950,-470.84423527,0.00017248,2]
[352002440,1738875040962,-9781.4119277,0.00017248,2]
[352002442,1738875040972,-150.0,0.00017249,2]
[352002443,1738875040981,-150.0,0.00017249,2]
[352002445,1738875040991,-234.33,0.0001725,2]
[352002447,1738875041000,-150.0,0.0001725,2]
[352002449,1738875041010,-150.0,0.00017252,2]
[352002451,1738875041020,-150.0,0.00017253,2]
[352002453,1738875041030,-1548.1,0.00017253,2]
[352002455,1738875041039,-1118.13471575,0.00017253,2]
[352002458,1738875041054,-578.57528425,0.00017253,2]
[352002460,1738875041064,-548.87,0.00017253,2]
[352002462,1738875041073,-654.96,0.00017253,2]
[352002465,1738875041094,-500.0,0.00017253,2]
[352002467,1738875041105,-582.36,0.00017253,2]
[352002469,1738875041116,-569.12,0.00017253,2]
[352002471,1738875041126,-500.0,0.00017253,2]
[352002473,1738875041137,-554.79,0.00017253,2]
[352002476,1738875041147,-1000.0,0.00017253,2]
[352002478,1738875041158,-500.0,0.00017253,2]
[352002480,1738875041168,-509.16,0.00017253,2]
[352002482,1738875041178,-500.0,0.00017253,2]
[352002484,1738875041189,-500.0,0.00017254,2]
[352002486,1738875041199,-500.0,0.00017254,2]
[352002488,1738875041217,-500.0,0.00017254,2]
[352002490,1738875041226,-500.0,0.00017254,2]
[352002492,1738875041236,-500.0,0.00017254,2]
[352002495,1738875041246,-357.25416946,0.00017254,2]
[352002497,1738875041256,-500.0,0.00017254,2]
[352002499,1738875041267,-500.0,0.00017254,2]
[352002501,1738875041277,-500.0,0.00017254,2]
[352002503,1738875041287,-500.0,0.00017254,2]
[352002505,1738875041297,-500.0,0.00017254,2]
[352002507,1738875041307,-500.0,0.00017254,2]
[352002509,1738875041320,-500.0,0.00017254,2]
[352002511,1738875041330,-500.0,0.00017254,2]
[352002513,1738875041340,-500.0,0.00017254,2]
[352002515,1738875041350,-500.0,0.00017254,2]
[352002518,1738875041363,-500.0,0.00017254,2]
[352002520,1738875041372,-525.25,0.00017254,2]
[352002522,1738875041383,-500.0,0.00017254,2]
[352002524,1738875041394,-183.64469734,0.00017254,2]
[352002526,1738875041406,-500.0,0.00017254,2]
[352002528,1738875041416,-500.0,0.00017254,2]
[352002530,1738875041427,-500.0,0.00017254,2]
[352002532,1738875041437,-500.0,0.00017254,2]
[352002534,1738875041447,-500.0,0.00017254,2]
[352002537,1738875041457,-500.0,0.00017254,2]
[352002539,1738875041468,-500.0,0.00017254,2]
[352002541,1738875041478,-158.1771294,0.00017254,2]
[352002543,1738875041489,-500.0,0.00017254,2]
[352002545,1738875041499,-500.0,0.00017254,2]
[352002547,1738875041509,-500.0,0.00017254,2]
[352002549,1738875041519,-500.0,0.00017254,2]
[352002551,1738875041529,-500.0,0.00017254,2]
[352002553,1738875041539,-888.06,0.00017254,2]
[352002555,1738875041548,-456.1370444,0.00017254,2]
[352002557,1738875041558,-500.0,0.00017254,2]
[352002559,1738875041568,-500.0,0.00017254,2]
[352002561,1738875041578,-500.0,0.00017254,2]
[352002564,1738875041588,-500.0,0.00017254,2]
[352002566,1738875041598,-550.54,0.00017254,2]
[352002568,1738875041608,-837.24,0.00017254,2]
[352002570,1738875041618,-431.91167515,0.00017254,2]
[352002637,1738875042252,-150.0,0.00017003,2]
[352002639,1738875042262,-150.0,0.00017004,2]
[352002642,1738875042272,-150.0,0.00017044,2]
[352002645,1738875042283,-150.0,0.00017096,2]
[352002648,1738875042292,-384.34476,0.00017117,2]
[352002653,1738875042316,-150.0,0.00016986,2]
[352002655,1738875042326,-115.65524,0.00017117,2]